{"text_format":"3","workbook":"xlsx","n_sheets":3,"sheets":["EXT","Translation","Selections"],"not_rendered":{"images":10,"external_links":1,"defined_names":1},"read":"whole","date_system":"1900"}

{"sheet":"EXT","index":0,"n_rows":67,"n_cols":27,"rows_kept":67,"merged":[[1,9,1,10],[1,11,1,18],[2,13,2,14],[2,15,2,16],[2,17,2,18],[3,3,4,3],[4,13,8,13],[4,14,6,14],[4,15,10,16],[4,17,8,17],[4,18,6,18],[7,14,10,14],[7,18,10,18],[9,13,10,13],[9,17,10,17],[15,21,20,26],[57,0,57,1],[57,6,57,7],[57,9,57,10],[61,23,61,26],[62,23,64,26]]}
[]
["Zvolte jazyk",{"$nulls":4},{"$f":"Translation!A3","v":"Ogólna "},{"$nulls":3},{"$f":"Translation!A6","v":"Brama bez napędu"},null,{"$f":"Translation!A7","v":"Brama z napędem"},{"$nulls":8},"H",{"$f":"Translation!A24","v":"Wysokość otworu budowlanego [mm]"}]
["Select a language",{"$nulls":4},{"$f":"Translation!A4","v":"wysokość [mm]"},"FOH","D","K","min. CEL","CPH",{"$f":"J3","v":"min. CEL"},{"$f":"K3","v":"CPH"},"X",null,"E1",null,"E2",null,null,"GH",{"$f":"Translation!A3&\" \"&Translation!A4","v":"Ogólna  wysokość [mm]"}]
["Wählen Sie eine Sprache:",null,null,"PL",null,"GH","GH + 0","GH + 575","GH - 35","GH + 100","GH - 350","GH + 125","GH - 0","GTA 71x","RUN 600",{"$f":"N4","v":"GTA 71x"},{"$f":"O4","v":"RUN 600"},{"$f":"P4","v":"GTA 71x"},"RUN 600",null,"FOH",{"$f":"Translation!A9","v":"Wysokość do dolnej krawędzi profilu nadproża [mm]"}]
["Wybierz język:",{"$nulls":4},1875,{"$f":"F5+0","v":1875},{"$f":"F5+575","v":2450},{"$f":"F5-35","v":1840},{"$f":"F5+100","v":1975},{"$f":"F5-350","v":1525},{"$f":"J5+(35-10)","v":2000},{"$f":"F5","v":1875},3540,3100,1400,null,3350,2950,null,"D",{"$f":"Translation!A12","v":"Głębokość prowadzenia [mm]"}]
["Sélectionner une langue:",{"$nulls":4},2000,{"$f":"F6+0","v":2000},{"$f":"F6+575","v":2575},{"$f":"F6-35","v":1965},2100,{"$f":"F6-350","v":1650},2125,{"$f":"F6","v":2000},{"$nulls":7},"K",{"$f":"Translation!A16","v":"Dolna krawędź prowadzenia poziomego [mm]"}]
["Kies een taal:",{"$nulls":4},2125,{"$f":"F7+0","v":2125},2700,2090,2225,1775,2250,2125,{"$nulls":7},"CEL",{"$f":"Translation!A8","v":"Wysokość stropu [mm]"}]
[{"$nulls":5},2250,2250,2825,2215,2350,1900,2375,2250,null,{"$f":"N10","v":4240},{"$nulls":3},{"$f":"R10","v":4060},null,"CPH",{"$f":"Translation!A10","v":"Dolna krawędź w pełni otwartej bramy [mm]"}]
[{"$nulls":5},2375,2375,2950,2340,2475,2025,2500,2375,{"$nulls":7},"X",{"$f":"Translation!A14","v":"Długość napędu [mm]"}]
[{"$nulls":5},2500,2500,3075,2465,2600,2150,2625,2500,4240,{"$nulls":3},4060,null,null,"E1",{"$f":"Translation!A18","v":"Punkt uchwycenia szyny napędu [mm]"}]
[{"$nulls":5},2625,{"$f":"F11+0","v":2625},3200,2590,2725,2275,2750,2625,{"$nulls":7},"E2",{"$f":"Translation!A20","v":"Punkt uchwycenia napędu [mm]"}]
[{"$nulls":20},"Z",{"$f":"Translation!A31","v":"Położenie gniazda około 250 mm"}]
["     Z",{"$nulls":3},"X"]
[{"$nulls":6},"E2"]
[{"$nulls":8},"D",{"$nulls":8},{"$f":"Translation!A26&\" (GH = H = FOH)\"","v":"Sytuacja standardowa (GH = H = FOH)"}]
[{"$nulls":12},"E1",{"$nulls":8},{"$f":"Translation!A28","v":"Skład paneli i konstrukcja skrzydła jest zawsze rozpatrywane na podstawie FOH."}]
[]
[]
[]
[]
[]
[]
[null,null,165]
[]
[null,{"$f":"Translation!A32","v":"Gniazdo CEE 7/3 lub CEE 7/5"},{"$nulls":18},"GH"]
[null,{"$f":"Translation!A33","v":"230V, 50Hz, ochrona za pomocą bezpiecznika 6A (10A)"},{"$nulls":18},"="]
[{"$nulls":20},"H"]
[{"$nulls":20},"="]
[{"$nulls":20},"FOH"]
[]
[]
[]
[]
[]
[{"$nulls":17},{"$f":"Translation!A27&\" (GH > H)\"","v":"Sytuacja niestandardowa (GH > H)"},{"$nulls":4},{"$f":"Translation!A27&\" (GH < H)\"","v":"Sytuacja niestandardowa (GH < H)"}]
[]
[]
[{"$nulls":5},"GH - 75",{"$nulls":8},"GH","CEL "]
[{"$nulls":10},"K"]
[]
[]
[]
[]
[]
[]
[{"$nulls":26},"H"]
[{"$nulls":20},"GH",{"$nulls":3},"GH"]
[{"$nulls":19},"H","=",{"$nulls":3},"=  "]
[{"$nulls":12},140,{"$nulls":7},"FOH  ",{"$nulls":3},"FOH"]
[]
[]
[]
[]
[]
[]
[{"$f":"Translation!A22","v":"Instalacja standardowa"},{"$nulls":5},{"$f":"Translation!A23","v":"Instalacja alternatywna"}]
[]
["    >= 95",{"$nulls":3},">=95",null,"0 - 94",null,null,"0 - 94"]
[]
[]
[]
[{"$nulls":23},"http://door-documents.com/en/installation-drawing-ext"]
[{"$nulls":23},"Guardy EXT"]
[]
[]
[{"$nulls":25},{"$f":"Translation!A29","v":"Wersja:"},{"$f":"Translation!A30","v":"Format:"}]
[{"$nulls":25},1710,"A4"]

{"sheet":"Translation","index":1,"n_rows":45,"n_cols":10,"rows_kept":45,"hidden":true}
["EXT"]
[{"$f":"IF(EXT!D4=E2,1,IF(EXT!D4=F2,2,IF(EXT!D4=G2,3,IF(EXT!D4=H2,4,IF(EXT!D4=I2,5,IF(EXT!D4=J2,6,\"Chyba\"))))))","v":4},{"$nulls":3},"CZ","EN","DE","PL","FR","NL"]
[{"$f":"VLOOKUP(E3,E:J,$A$2,FALSE)","v":"Ogólna "},{"$nulls":3},"Obecná","General","Allgemeine","Ogólna ","Hauteur","Algemene"]
["wysokość [mm]",{"$nulls":3},"výška [mm]","height [mm]","Höhe [mm]","wysokość [mm]","Générale [mm]","hoogte [mm]"]
["Min wysokość stropu [mm]",{"$nulls":3},"Min. výška stropu [mm]","Min. height of ceiling [mm]","Min. Deckenhöhe [mm]","Min wysokość stropu [mm]","Hauteur minimale du plafond [mm]","Min. plafondhoogte [mm]"]
["Brama bez napędu",{"$nulls":3},"Vrata bez motoru","Manually operated","Tor ohne Motor","Brama bez napędu","Porte sans moteur","Deur zonder motor"]
["Brama z napędem",{"$nulls":3},"Vrata s motorem","Electrically operated","Tor mit Motor","Brama z napędem","Porte avec moteur","Garaged. met motor"]
["Wysokość stropu [mm]",{"$nulls":3},"Výška stropu [mm]","Height of ceiling [mm]","Deckenhöhe [mm]","Wysokość stropu [mm]","Hauteur du plafond [mm]","Plafondhoogte [mm]"]
["Wysokość do dolnej krawędzi profilu nadproża [mm]",{"$nulls":3},"Výška ke spodní hraně překladového profilu [mm]","Height to bottom edge of lintel profile [mm]","Höhe zur unteren Kante des Sturzprofiles [mm]","Wysokość do dolnej krawędzi profilu nadproża [mm]","Hauteur jusqu'à l'arête inférieure du profilé de linteau [mm]","Hoogte van de onderrand van het dwarsbalkprofiel [mm]"]
["Dolna krawędź w pełni otwartej bramy [mm]",{"$nulls":3},"Spodní hrana plně otevřených vrat [mm]","Bottom edge of fully open door [mm]","Untere Kante des vollständig geöffneten Tors [mm]","Dolna krawędź w pełni otwartej bramy [mm]","Arête inférieure de la porte toute ouverte [mm]","Onderste rand van een volledig geopende deur [mm]"]
["Dolna krawędź w pełni otwartej bramy (CPH) [mm]",{"$nulls":3},"Spodní hrana plně otevřených vrat (CPH) [mm]","Bottom edge of fully open door (CPH) [mm]","Untere Kante des vollständig geöffneten Tors (CPH) [mm]","Dolna krawędź w pełni otwartej bramy (CPH) [mm]","Arête inférieure de la porte toute ouverte (CPH) [mm]","Onderste rand van een volledig geopende deur (CPH) [mm]"]
["Głębokość prowadzenia [mm]",{"$nulls":3},"Hloubka vedení [mm]","Back room [mm]","Führungstiefe [mm]","Głębokość prowadzenia [mm]","Profondeur du guidage [mm]","Inbouwdiepte van de rails [mm]"]
["Głębokość prowadzenia (D) [mm]",{"$nulls":3},"Hloubka vedení (D) [mm]","Back room (D) [mm]","Führungstiefe (D) [mm]","Głębokość prowadzenia (D) [mm]","Profondeur du guidage (D) [mm]","Diepte van de geleiding (D) [mm]"]
["Długość napędu [mm]",{"$nulls":3},"Délka pohonu [mm]","Length of motor [mm]","Antriebslänge [mm]","Długość napędu [mm]","Longueur de la propulsion [mm]","Lengte  van de aandrijving [mm]"]
["Długość napędu (X) [mm]",{"$nulls":3},"Délka pohonu (X) [mm]","Length of motor (X) [mm]","Antriebslänge (X) [mm]","Długość napędu (X) [mm]","Longueur de la propulsion (X) [mm]","Lengte  van de aandrijving (X) [mm]"]
["Dolna krawędź prowadzenia poziomego [mm]",{"$nulls":3},"Spodní hrana horizontálního vedení [mm]","Bottom edge of horizontal tracks [mm]","Untere Kante der Horizontalführung [mm]","Dolna krawędź prowadzenia poziomego [mm]","Arête inférieure du guidage horizontale [mm]","Onderste rand van de horizontale rails [mm]"]
["Dolna krawędź prowadzenia poziomego (K) [mm]",{"$nulls":3},"Spodní hrana horizontálního vedení (K) [mm]","Bottom edge of horizontal tracks (K) [mm]","Untere Kante der Horizontalführung (K) [mm]","Dolna krawędź prowadzenia poziomego (K) [mm]","Arête inférieure du guidage horizontale (K) [mm]","Onderste rand van de horizontale rails (K) [mm]"]
["Punkt uchwycenia szyny napędu [mm]",{"$nulls":3},"Kotvící bod lišty pohonu [mm]","Hanging point for motor track [mm]","Verankerungspunkt der Antriebsleiste [mm]","Punkt uchwycenia szyny napędu [mm]","Point d'ancrage de la glissière de propulsion [mm]","Bevestigingspunt van de motorgeleidingsrail [mm]"]
["Punkt uchwycenia szyny napędu (E1) [mm]",{"$nulls":3},"Kotvící bod lišty pohonu (E1) [mm]","Hanging point for motor track (E1) [mm]","Verankerungspunkt der Antriebsleiste (E1) [mm]","Punkt uchwycenia szyny napędu (E1) [mm]","Point d'ancrage de la glissière de propulsion (E1) [mm]","Bevestigingspunt van de motorgeleidingsrail (E1) [mm]"]
["Punkt uchwycenia napędu [mm]",{"$nulls":3},"Kotvící bod pohonu [mm]","Hanging point for motor [mm]","Verankerungspunkt des Antriebes [mm]","Punkt uchwycenia napędu [mm]","Point d'ancrage de la propulsion [mm]","Bevestigingspunt van de aandrijvingsgeleidingsbalk [mm]"]
["Punkt uchwycenia napędu (E2) [mm]",{"$nulls":3},"Kotvící bod pohonu (E2) [mm]","Hanging point for motor (E2) [mm]","Verankerungspunkt des Antriebes (E2) [mm]","Punkt uchwycenia napędu (E2) [mm]","Point d'ancrage de la propulsion (E2) [mm]","Bevestigingsp. van de aandrijvingsgeleidingsbalk (E2) [mm]"]
["Instalacja standardowa",{"$nulls":3},"Standardní montáž","Standard installation","Standardmontage","Instalacja standardowa","Assemblage standard","Standaardmontage"]
["Instalacja alternatywna",{"$nulls":3},"Alternativní montáž","Alternative installation","Alternative Montage","Instalacja alternatywna","Assemblage alternatif ","Alternatieve montage"]
["Wysokość otworu budowlanego [mm]",{"$nulls":3},"Výška stavebního otvoru [mm]","Clear opening height [mm]","Höhe der Bauöffnung [mm]","Wysokość otworu budowlanego [mm]","Hauteur de la baie de construction [mm]","Dagmaat hoogte [mm]"]
["Wysokość otworu budowlanego (H) [mm]",{"$nulls":3},"Výška stavebního otvoru (H) [mm]","Clear opening height (H) [mm]","Höhe der Bauöffnung (H) [mm]","Wysokość otworu budowlanego (H) [mm]","Hauteur de la baie de construction (H) [mm]","Dagmaat hoogte (H) [mm]"]
["Sytuacja standardowa",{"$nulls":3},"Standardní situace","Standard situation","Standardsituation","Sytuacja standardowa","Situation standard","Standaardsituatie"]
["Sytuacja niestandardowa",{"$nulls":3},"Nestandardní situace","Non-standard situation","Ungewöhnliche Situation","Sytuacja niestandardowa","Situation hors de standard","Niet-standaardsituaties"]
["Skład paneli i konstrukcja skrzydła jest zawsze rozpatrywane na podstawie FOH.",{"$nulls":3},"Skladba panelů a design křídla je vždy řešen vůči FOH.","Panel assembly and design of door leaf is always considered based on FOH.","Die Paneelaufteilung und das Design des Torblattes wird immer auf der Basis von FOH-Mass gelöst.","Skład paneli i konstrukcja skrzydła jest zawsze rozpatrywane na podstawie FOH.","Assemblage de panneau et la conception de battant de porte est toujours considéré comme la base de FOH.","Paneel samenstelling en complete opbouw van het deurblad wordt altijd  gebaseerd op FOH."]
["Wersja:",{"$nulls":3},"Verze:","Version:","Version:","Wersja:","VERSION:","Versie:"]
["Format:",{"$nulls":3},"Formát:","Sheet:","Format:","Format:","FORMAT:","Formaat:"]
["Położenie gniazda około 250 mm",{"$nulls":3},"Pozice zásuvky, cca. 250 mm","Position of socket, ca. 250 mm","Die Position der Steckdose ca.250 mm","Położenie gniazda około 250 mm","La position de la prise électrique env. 250 mm","Positie van Eurostopcontact CEE, ca. 250mm"]
["Gniazdo CEE 7/3 lub CEE 7/5",{"$nulls":3},"Zásuvka typu CEE 7/3 nebo CEE 7/5","CEE 7/3 or CEE 7/5 socket","Steckdose CEE 7/3 oder CEE 7/5","Gniazdo CEE 7/3 lub CEE 7/5","Prise CEE 7/3 ou CEE 7/5","Eurostopcontact CEE 7/3 of CEE 7/5"]
["230V, 50Hz, ochrona za pomocą bezpiecznika 6A (10A)",{"$nulls":3},"230V, 50Hz, jištěno 6 A (10 A) jističem","230V, 50Hz, protect by 6 A (10 A) circuit breaker","230V, 50Hz, Sicherung 6 A (10 A) mit Schutzschalter","230V, 50Hz, ochrona za pomocą bezpiecznika 6A (10A)","230V, 50Hz, assuré par un disjoncteur 6 A (10 A)","230V, 50Hz, afgezekerd met 6A (10A)"]
["Szerokość otworu [mm]",{"$nulls":3},"Šířka stavebního otvoru [mm]","Opening width [mm]","Lichte Breite [mm]","Szerokość otworu [mm]","Largeur de baie [mm]","Opening breedte "]
["Szerokość otworu (W) [mm]",{"$nulls":3},"Šířka stavebního otvoru (W) [mm]","Opening width (W) [mm]","Lichte Breite (W) [mm]","Szerokość otworu (W) [mm]","Largeur de baie (W) [mm]","Opening breedte (W) [mm]"]
["Sterowanie",{"$nulls":3},"Ovládání","Operated","Bedienung","Sterowanie","Commande","Bediening"]
["ręcznie wykonany",{"$nulls":3},"ručně","manually","händisch","ręcznie wykonany","manuelle","handbediend"]
["elektrycznie",{"$nulls":3},"elektricky","electrical ","elektrisch","elektrycznie","motorisée","elektrisch"]
["Wysokość nadproża [mm]",{"$nulls":3},"Výška nádpraží [mm]","Height of lintel [mm]","Freiraum über Sturz [mm]","Wysokość nadproża [mm]","Retombée de linteau [mm]","Hoogte van de latei [mm]"]
["Wysokość nadproża (F) [mm]",{"$nulls":3},"Výška nádpraží (F) [mm]","Height of lintel (F) [mm]","Freiraum über Sturz (F) [mm]","Wysokość nadproża (F) [mm]","Retombée de linteau (F) [mm]","Hoogte van de latei (F) [mm]"]
["Rodzaj napędu",{"$nulls":3},"Typ pohonu","Type of motor","Der Typ des Antriebs","Rodzaj napędu","Type de motor","Type motor"]
["Informacje o napędu",{"$nulls":3},"Informace o motoru","Information regarding motor","Die Information über den Antrieb","Informacje o napędu","Information concernant le moteur","Informatie betreffende de motor"]
["Umieszczenie górnego uszczelnienia",{"$nulls":3},"Umístění horního těsnění","Placement of top sealing","Die Unterbringung der Oberdichtung","Umieszczenie górnego uszczelnienia","Emplacement du joint d'étanchéité","Plaatsing van de top afdichting"]
["Na nadprožu",{"$nulls":3},"na překladu","at lintel","Auf dem Sturz ","Na nadprožu","au linteau","op de latei"]
["Na górnej częśći ",{"$nulls":3},"na horní sekci","on the top section","Auf der Obersektion","Na górnej częśći ","sur le panneau supérieur","boven op top paneel"]

{"sheet":"Selections","index":2,"n_rows":23,"n_cols":15,"rows_kept":23,"hidden":true}
["Výběr jazyka",null,"LHF-C"]
["CZ"]
["EN",null,{"$f":"Translation!B36","v":0},null,"Hloubka vedení",{"$nulls":3},{"$f":"Translation!B41","v":0},null,"Délka pohonu",null,null,"Kotvící bod pohonu"]
["DE"]
["PL",null,{"$f":"Translation!B37","v":0},null,0,{"$f":"2575","v":2575},null,null,"GTA 71x",null,{"$f":"I5","v":"GTA 71x"},null,null,{"$f":"I5","v":"GTA 71x"}]
["NL",null,{"$f":"Translation!B38","v":0},null,2001,2700,null,null,"RUN 600",null,0,3540,null,0,3350]
["FR",{"$nulls":3},2126,2825,{"$nulls":4},2376,4240,null,2376,4060]
[{"$nulls":4},2251,2950]
[{"$nulls":4},2376,3075,{"$nulls":4},{"$f":"I6","v":"RUN 600"},null,null,{"$f":"I6","v":"RUN 600"}]
[{"$nulls":4},2501,3325,{"$nulls":4},0,3100,null,0,2950]
[{"$nulls":4},2751,3575,{"$nulls":4},2126,4240,null,2126,4060]
[]
[null,null,"LHR-C"]
[]
[null,null,{"$f":"Translation!C36","v":0},null,"Hloubka vedení",{"$nulls":3},{"$f":"Translation!C41","v":0},null,"Délka pohonu",null,null,"Kotvící bod pohonu"]
[]
[null,null,{"$f":"Translation!C37","v":0},null,0,{"$f":"2575+120","v":2695},null,null,"GTA 71x",null,{"$f":"I17","v":"GTA 71x"},null,null,{"$f":"I17","v":"GTA 71x"}]
[null,null,{"$f":"Translation!C38","v":0},null,2001,{"$f":"2700+120","v":2820},null,null,"RUN 600",null,0,3540,null,0,3350]
[{"$nulls":4},2126,{"$f":"2825+120","v":2945},{"$nulls":4},2376,4240,null,2376,4060]
[null,null,"Umístění horního těsnění",null,2251,{"$f":"2950+120","v":3070},null,null,{"$f":"Translation!C40","v":0}]
[{"$nulls":4},2376,{"$f":"3075+120","v":3195},null,{"$f":"'[1]LHR-C'!J6","v":0},{"$f":"IF(H21=Selections!C17,90,IF(H21=Selections!C18,125,\"Error\"))","v":90},null,{"$f":"I18","v":"RUN 600"},null,null,{"$f":"I18","v":"RUN 600"}]
[null,null,{"$f":"Translation!C44","v":0},null,2501,{"$f":"3325+120","v":3445},null,{"$f":"'[1]LHR-C'!J8","v":0},{"$f":"IF(H22=Selections!C22,0,IF(H22=Selections!C23,35,\"Error\"))","v":0},null,0,3100,null,0,2950]
[null,null,{"$f":"Translation!C45","v":0},null,2751,{"$f":"3575+120","v":3695},{"$nulls":4},2126,4240,null,2126,4060]